fUSD/lending_fUSD_20250415
["ID","MTS","AMOUNT","RATE_DAILY","PERIOD"]
[358114790,1744740641734,-304.75512875,0.00017999,2]
[358114791,1744740641743,-500.0,0.00017999,2]
[358114792,1744740641752,-500.0,0.00017999,2]
[358114793,1744740641762,-500.0,0.00017999,2]
[358114794,1744740641770,-500.0,0.00017999,2]
[358114795,1744740641780,-500.0,0.00017999,2]
[358114796,1744740641791,-500.0,0.00017999,2]
[358114797,1744740641800,-500.0,0.00017999,2]
[358114798,1744740641809,-500.0,0.00017999,2]
[358114799,1744740641818,-500.0,0.00017999,2]
[358114800,1744740641827,-500.0,0.00017999,2]
[358114801,1744740641836,-500.0,0.00017999,2]
[358114802,1744740641990,-378.09302363,0.00017999,2]
[358114803,1744740642005,-500.0,0.00017999,2]
[358114804,1744740642015,-500.0,0.00017999,2]
[358114805,1744740642026,-500.0,0.00017999,2]
[358114806,1744740642036,-500.0,0.00017999,2]
[358114807,1744740642046,-500.0,0.00017999,2]
[358114808,1744740642056,-500.0,0.00017999,2]
[358114809,1744740642065,-522.83,0.00017999,2]
[358114810,1744740642075,-522.83,0.00017999,2]
[358114811,1744740642085,-522.83,0.00017999,2]
[358114812,1744740642094,-522.83,0.00017999,2]
[358114813,1744740642104,-522.83,0.00017999,2]
[358114814,1744740642112,-522.83,0.00017999,2]
[358114815,1744740642122,-522.83,0.00017999,2]
[358114816,1744740642131,-522.83,0.00017999,2]
[358114817,1744740642141,-522.83,0.00017999,2]
[358114818,1744740642150,-522.83,0.00017999,2]
[358114819,1744740642159,-522.83,0.00017999,2]
[358114820,1744740642169,-522.83,0.00017999,2]
[358114821,1744740642180,-522.83,0.00017999,2]
[358114822,1744740642189,-522.83,0.00017999,2]
[358114823,1744740642198,-522.83,0.00017999,2]
[358114824,1744740642208,-522.83,0.00017999,2]
[358114825,1744740642218,-522.83,0.00017999,2]
[358114826,1744740642229,-522.83,0.00017999,2]
[358114827,1744740642238,-522.83,0.00017999,2]
[358114828,1744740642248,-522.83,0.00017999,2]
[358114829,1744740642258,-522.83,0.00017999,2]
[358114830,1744740642267,-522.83,0.00017999,2]
[358114831,1744740642277,-522.98999999,0.00017999,2]
[358114832,1744740642286,-199.62,0.00017999,2]
[358114833,1744740642296,-500.0,0.00017999,2]
[358114834,1744740642306,-500.0,0.00017999,2]
[358114835,1744740642315,-500.0,0.00017999,2]
[358114836,1744740642327,-500.0,0.00017999,2]
[358114837,1744740642336,-500.0,0.00017999,2]
[358114838,1744740642346,-500.0,0.00017999,2]
[358114839,1744740642355,-500.0,0.00017999,2]
[358114840,1744740642365,-500.0,0.00017999,2]
[358114841,1744740642374,-255.33,0.00017999,2]
[358114842,1744740642383,-500.0,0.00017999,2]
[358114843,1744740642392,-500.0,0.00017999,2]
[358114844,1744740642402,-500.0,0.00017999,2]
[358114845,1744740642411,-273.46,0.00017999,2]
[358114846,1744740642421,-500.0,0.00017999,2]
[358114847,1744740642431,-500.0,0.00017999,2]
[358114848,1744740642440,-500.0,0.00017999,2]
[358114849,1744740642449,-500.0,0.00017999,2]
[358114850,1744740642458,-500.0,0.00017999,2]
[358114851,1744740642467,-500.0,0.00017999,2]
[358114852,1744740642476,-500.0,0.00017999,2]
[358114853,1744740642484,-500.0,0.00017999,2]
[358114854,1744740642494,-200.0,0.00017999,2]
[358114855,1744740642503,-500.0,0.00017999,2]
[358114856,1744740642511,-500.0,0.00017999,2]
[358114857,1744740642521,-500.0,0.00017999,2]
[358114858,1744740642530,-500.0,0.00017999,2]
[358114859,1744740642539,-467.46361847,0.00017999,2]
[358114860,1744740642548,-387.97692194,0.00017999,2]
[358114861,1744740642558,-500.0,0.00017999,2]
[358114862,1744740642568,-1318.0,0.00018,2]
[358114863,1744740642577,-1198612.3515585,0.00018,2]
[358114864,1744740642588,-426695.58363298,0.00018,2]
[358114865,1744740642597,-1233434.68847943,0.00018,2]
[358114866,1744740642611,-1285.41366458,0.00018,2]
[358114867,1744740642622,-5834.26056472,0.00018,2]
[358114868,1744740642634,-7564.3617255,0.00018,2]
[358114869,1744740642645,-2177.6,0.00018,2]
[358114870,1744740642656,-407.98088,0.00018,2]
[358114871,1744740642667,-2979.88502549,0.00018,2]
[358114872,1744740642678,-444.67176283,0.00018,2]
[358114873,1744740642690,-2643.30290429,0.00018,2]
[358114874,1744740642711,-500.0,0.00017999,2]
[358114875,1744740642720,-274.42425797,0.00018,2]
[358114876,1744740642731,-5561.91236038,0.00018,2]
[358114882,1744740643467,-7163.50606121,0.00018,2]
[358114888,1744740646295,-389.99985358,0.00017897,2]
[358114889,1744740646350,-592.025,0.00017897,2]
[358114890,1744740646403,-1517.97514642,0.00017897,2]
[358114891,1744740646413,-1974.96622659,0.00018,2]
[358114892,1744740646508,-401.33630978,0.00018,2]
[358114893,1744740815300,311.97,0.00016916,2]
[358114894,1744741030134,903.25,0.00016905,2]
[358114895,1744741207846,250.0,0.00016906,2]
[358114896,1744741322365,250.0,0.00017,2]
[358114897,1744741363277,250.0,0.00017,2]
[358114898,1744741391724,638.04,0.00014985,2]
[358114899,1744741391932,638.04,0.00017249,2]
[358114900,1744741554684,15012.0,0.00015,10]
[358114901,1744741580495,503.74660434,0.00017998,7]
[358114902,1744741605847,200.0,0.00016909,7]
[358114904,1744741681010,1113.27224316,0.00015,10]
[358114906,1744741722411,2191.05170379,0.0001421,7]
[358114907,1744741724630,5455.70079442,0.00015,5]
[358114908,1744741735615,386.43,0.00016906,2]
[358114913,1744741774488,886.75,0.00016906,2]
[358114920,1744741811601,1000.0,0.00016905,2]
[358114935,1744741831674,-250.0,0.00017618,2]
[358114936,1744741831685,-213.14705203,0.00017622,2]
[358114959,1744741837449,-36.85294797,0.00017622,2]
[358114960,1744741837460,-668.65185757,0.00017689,2]
[358114961,1744741837470,-207.4,0.00017689,2]
[358114962,1744741837479,-42.94927213,0.00017699,2]
[358114963,1744741837506,-257.05072787,0.00017699,2]
[358114964,1744741837515,-524.49864553,0.000177,2]
[358114965,1744741837671,-804.50000002,0.000177,2]
[358114966,1744741837682,-422.80237909,0.000177,2]
[358114967,1744741837697,-375.9636326,0.000177,2]
[358114968,1744741837712,-5306.27607722,0.000177,2]
[358114969,1744741837722,-261.93910001,0.000177,2]
[358114970,1744741837731,-150.0,0.00017726,2]
[358114971,1744741837740,-150.0,0.00017736,2]
[358114972,1744741837749,-150.0,0.00017738,2]
[358114973,1744741837758,-150.0,0.00017744,2]
[358114974,1744741837768,-150.0,0.00017744,2]
[358114975,1744741837777,-150.0,0.00017754,2]
[358114976,1744741837786,-150.0,0.00017763,2]
[358114977,1744741837795,-150.0,0.00017766,2]
[358114978,1744741837804,-150.0,0.00017788,2]
[358114979,1744741837815,-150.0,0.00017796,2]
[358114980,1744741837824,-150.0,0.00017807,2]
[358114981,1744741837834,-150.0,0.00017807,2]
[358114982,1744741837843,-150.0,0.00017813,2]
[358114983,1744741837851,-150.0,0.00017818,2]
[358114984,1744741837861,-1000.0,0.00017841,2]
[358114985,1744741837870,-150.0,0.00017842,2]
[358114986,1744741837879,-150.0,0.00017842,2]
[358114987,1744741837887,-150.0,0.00017844,2]
[358114988,1744741837896,-150.0,0.00017844,2]
[358114989,1744741837905,-150.0,0.00017846,2]
[358114990,1744741837914,-150.0,0.00017848,2]
[358114991,1744741837923,-150.0,0.0001786,2]
[358114992,1744741837932,-150.0,0.0001787,2]
[358114993,1744741837942,-150.0,0.00017875,2]
[358114994,1744741837951,-150.0,0.00017878,2]
[358114995,1744741837960,-150.0,0.00017881,2]
[358114996,1744741837969,-150.0,0.00017883,2]
[358114997,1744741837978,-150.0,0.00017883,2]
[358114998,1744741837987,-150.0,0.00017886,2]
[358114999,1744741837997,-150.0,0.00017894,2]
[358115000,1744741838006,-1000.0,0.00017898,2]
[358115001,1744741838016,-175.4531321,0.00017899,2]
[358115002,1744741838026,-441.64088467,0.00017899,2]
[358115003,1744741838036,-441.64088461,0.00017899,2]
[358115004,1744741838046,-441.64088461,0.00017899,2]
[358115005,1744741838055,-175.45313208,0.00017899,2]
[358115006,1744741838066,-441.64088461,0.00017899,2]
[358115007,1744741838075,-441.64088461,0.00017899,2]
[358115008,1744741838084,-175.45313208,0.000179,2]
[358115009,1744741838094,-441.64088461,0.000179,2]
[358115010,1744741838103,-441.64088461,0.000179,2]
[358115012,1744741838113,-175.45313208,0.000179,2]
[358115014,1744741838123,-441.64088461,0.000179,2]
[358115016,1744741838133,-441.64088461,0.000179,2]
[358115018,1744741838143,-328.76882112,0.000179,2]
[358115020,1744741838154,-8116.02267185,0.000179,2]
[358115022,1744741838163,-175.45313208,0.000179,2]
[358115024,1744741838173,-441.64088461,0.000179,2]
[358115026,1744741838186,-173.88173848,0.000179,2]
[358115028,1744741838196,-1430.34089626,0.000179,2]
[358115030,1744741838206,-150.0,0.00017901,2]
[358115032,1744741838216,-1000.0,0.00017907,2]
[358115034,1744741838226,-150.0,0.0001792,2]
[358115036,1744741838236,-150.0,0.0001792,2]
[358115038,1744741838245,-200.0,0.0001792,2]
[358115040,1744741838255,-1659.0,0.0001792,2]
[358115042,1744741838264,-1079.0,0.0001792,2]
[358115044,1744741838274,-150.0,0.0001792,2]
[358115046,1744741838283,-150.0,0.0001792,2]
[358115048,1744741838294,-150.0,0.0001792,2]
[358115050,1744741838303,-150.0,0.0001792,2]
[358115052,1744741838313,-150.0,0.0001792,2]
[358115054,1744741838323,-150.0,0.0001792,2]
[358115056,1744741838332,-150.0,0.00017926,2]
[358115058,1744741838342,-150.0,0.00017927,2]
[358115060,1744741838352,-150.0,0.00017929,2]
[358115062,1744741838361,-150.0,0.00017934,2]
[358115064,1744741838371,-150.0,0.00017934,2]
[358115066,1744741838381,-150.0,0.00017938,2]
[358115068,1744741838390,-150.0,0.00017945,2]
[358115070,1744741838400,-1617.679,0.00017947,2]
[358115072,1744741838409,-150.0,0.00017969,2]
[358115074,1744741838422,-150.0,0.00017969,2]
[358115076,1744741838432,-1908.17435343,0.0001797,2]
[358115078,1744741838441,-300.0,0.00017971,2]
[358115080,1744741838451,-150.0,0.00017972,2]
[358115082,1744741838462,-500.0,0.00017973,2]
[358115084,1744741838473,-501.29372215,0.00017973,2]
[358115086,1744741838483,-4581.46173863,0.00017979,2]
[358115088,1744741838493,-150.0,0.00017984,2]
[358115090,1744741838503,-7852.9152358,0.00017986,2]
[358115092,1744741838513,-1509.5626943,0.00017986,2]
[358115094,1744741838522,-727.1821219,0.00017986,2]
[358115096,1744741838532,-150.0,0.00017989,2]
[358115098,1744741838542,-160.08390333,0.0001799,2]
[358115099,1744741838551,-160.08390333,0.0001799,2]
[358115101,1744741838561,-160.08390333,0.0001799,2]
[358115103,1744741838571,-306.28145298,0.00017996,2]
[358115106,1744741838581,-182.52305089,0.00017997,2]
[358115107,1744741838591,-152.0,0.00017998,2]
[358115109,1744741838601,-500.0,0.00017998,2]
[358115111,1744741838611,-446.27638389,0.00017998,2]
[358115113,1744741838620,-209.7,0.00017998,2]
[358115115,1744741838629,-500.0,0.00017998,2]
[358115117,1744741838639,-265.00515297,0.00017998,2]
[358115119,1744741838649,-644.75,0.00017998,2]
[358115121,1744741838659,-500.0,0.00017998,2]
[358115123,1744741838668,-500.0,0.00017998,2]
[358115125,1744741838678,-156.454995,0.00017998,2]
[358115127,1744741838688,-500.0,0.00017998,2]
[358115129,1744741838697,-500.0,0.00017998,2]
[358115131,1744741838706,-500.0,0.00017998,2]
[358115133,1744741838716,-500.0,0.00017998,2]
[358115135,1744741838725,-500.0,0.00017998,2]
[358115137,1744741838735,-500.0,0.00017998,2]
[358115139,1744741838744,-500.0,0.00017998,2]
[358115141,1744741838754,-500.0,0.00017998,2]
[358115143,1744741838764,-500.0,0.00017998,2]
[358115145,1744741838773,-500.0,0.00017998,2]
[358115147,1744741838782,-500.0,0.00017998,2]
[358115149,1744741838792,-500.0,0.00017998,2]
[358115151,1744741838801,-229.63862188,0.00017998,2]
[358115153,1744741838811,-500.0,0.00017998,2]
[358115155,1744741838820,-500.0,0.00017998,2]
[358115157,1744741838829,-500.0,0.00017998,2]
[358115159,1744741838839,-520.03386368,0.00017998,2]
[358115161,1744741838851,-500.0,0.00017998,2]
[358115163,1744741838861,-500.0,0.00017998,2]
[358115165,1744741838871,-523.02709679,0.00017998,2]
[358115166,1744741838884,-525.58531272,0.00017998,2]
[358115167,1744741838893,-500.0,0.00017998,2]
[358115168,1744741838902,-519.99843009,0.00017998,2]
[358115169,1744741838911,-500.0,0.00017998,2]
[358115170,1744741838920,-500.0,0.00017998,2]
[358115171,1744741838929,-500.0,0.00017998,2]
[358115172,1744741838938,-500.0,0.00017998,2]
[358115173,1744741838947,-500.0,0.00017998,2]
[358115174,1744741838956,-500.0,0.00017998,2]
[358115175,1744741838965,-383.16265504,0.00017998,2]
[358115176,1744741838975,-500.0,0.00017998,2]
[358115177,1744741838984,-500.0,0.00017998,2]
[358115178,1744741838994,-281.45548152,0.00017998,2]
[358115179,1744741839004,-500.0,0.00017998,2]
[358115180,1744741839013,-21127.36,0.00017998,2]
[358115181,1744741839023,-21127.36,0.00017998,2]
[358115182,1744741839032,-500.0,0.00017998,2]
[358115183,1744741839041,-515.36680396,0.00017998,2]
[358115184,1744741839051,-500.0,0.00017998,2]
[358115185,1744741839061,-500.0,0.00017998,2]
[358115186,1744741839070,-500.0,0.00017998,2]
[358115187,1744741839079,-500.0,0.00017998,2]
[358115188,1744741839089,-500.0,0.00017998,2]
[358115189,1744741839098,-500.0,0.00017998,2]
[358115190,1744741839107,-500.0,0.00017998,2]
[358115191,1744741839117,-500.0,0.00017998,2]
[358115192,1744741839127,-500.0,0.00017998,2]
[358115193,1744741839136,-500.0,0.00017998,2]
[358115194,1744741839145,-500.0,0.00017998,2]
[358115196,1744741839155,-276.50284015,0.00017998,2]
[358115198,1744741839165,-500.0,0.00017999,2]
[358115200,1744741839174,-500.0,0.00017999,2]
[358115201,1744741839184,-500.0,0.00017999,2]
[358115202,1744741839194,-500.0,0.00017999,2]
[358115203,1744741839203,-500.0,0.00017999,2]
[358115204,1744741839213,-500.0,0.00017999,2]
[358115205,1744741839223,-500.0,0.00017999,2]
[358115206,1744741839233,-500.0,0.00017999,2]
[358115207,1744741839243,-500.0,0.00017999,2]
[358115208,1744741839253,-527.28471709,0.00017999,2]
[358115209,1744741839263,-485.56874358,0.00017999,2]
[358115210,1744741839272,-511.26224839,0.00017999,2]
[358115211,1744741839282,-500.0,0.00017999,2]
[358115213,1744741839291,-500.0,0.00017999,2]
[358115214,1744741839301,-500.0,0.00017999,2]
[358115215,1744741839310,-666.0,0.00017999,2]
[358115216,1744741839319,-666.0,0.00017999,2]
[358115217,1744741839329,-300.0,0.00017999,2]
[358115218,1744741839339,-300.0,0.00017999,2]
[358115219,1744741839348,-300.0,0.00017999,2]
[358115220,1744741839357,-300.0,0.00017999,2]
[358115221,1744741839367,-500.0,0.00017999,2]
[358115222,1744741839376,-500.0,0.00017999,2]
[358115223,1744741839385,-21127.36,0.00017999,2]
[358115224,1744741839395,-21127.36,0.00017999,2]
[358115225,1744741839404,-2874.66424091,0.00017999,2]
[358115226,1744741839420,-18252.69575909,0.00017999,2]
[358115227,1744741839430,-21127.36,0.00017999,2]
[358115229,1744741839440,-21127.36,0.00017999,2]
[358115230,1744741839449,-21127.36,0.00017999,2]
[358115231,1744741839460,-21127.36,0.00017999,2]
[358115232,1744741839469,-21127.36,0.00017999,2]
[358115233,1744741839479,-21127.36,0.00017999,2]
[358115234,1744741839488,-21127.36,0.00017999,2]
[358115235,1744741839499,-21127.36,0.00017999,2]
[358115236,1744741839508,-21127.36,0.00017999,2]
[358115237,1744741839518,-21127.36,0.00017999,2]
[358115238,1744741839527,-21127.36,0.00017999,2]
[358115239,1744741839537,-21127.36,0.00017999,2]
[358115240,1744741839547,-21127.36,0.00017999,2]
[358115241,1744741839557,-21127.36,0.00017999,2]
[358115242,1744741839571,-21127.36,0.00017999,2]
[358115243,1744741839580,-500.0,0.00017999,2]
[358115244,1744741839590,-21127.36,0.00017999,2]
[358115245,1744741839599,-500.0,0.00017999,2]
[358115246,1744741839608,-21127.36,0.00017999,2]
[358115247,1744741839618,-173.4095064,0.00017999,2]
[358115248,1744741839627,-21127.36,0.00017999,2]
[358115249,1744741839637,-21127.50244746,0.00017999,2]
[358115250,1744741839647,-300.0,0.00017999,2]
[358115251,1744741839656,-300.0,0.00017999,2]
[358115252,1744741839666,-300.0,0.00017999,2]
[358115253,1744741839676,-300.0,0.00017999,2]
[358115254,1744741839685,-300.0,0.00017999,2]
[358115255,1744741839695,-500.0,0.00017999,2]
[358115256,1744741839704,-500.0,0.00017999,2]
[358115257,1744741839714,-500.0,0.00017999,2]
[358115258,1744741839724,-105978.50629275,0.00018,2]
[358115259,1744741839735,-1518.0,0.00018,2]
[358115260,1744741839745,-500.0,0.00018,2]
[358115261,1744741839755,-107826.67302208,0.00018,2]
[358115262,1744741839764,-651856.11691254,0.00018,2]
[358115263,1744741839776,-1915.86343495,0.00018,2]
[358115267,1744741840053,-150.0,0.00017726,2]
[358115269,1744741840063,-488.45311,0.00017998,2]
[358115272,1744741840075,-11.54689,0.00017998,2]
[358115274,1744741840084,-788.20310995,0.00018,2]
[358115276,1744741840096,-761.83580946,0.00018,2]
[358115280,1744741840125,-17706.51402165,0.00018,2]
[358115303,1744741842463,-338916.39221667,0.00018,2]
[358115308,1744741844465,-750.0,0.00018,2]
[358115309,1744741844514,-7937.24205839,0.00018,2]
[358115313,1744741845601,-1301.13544561,0.00018,2]
[358115314,1744741845613,-1695.51018219,0.00018,2]
[358115315,1744741845662,-2000.0,0.00018,2]
[358115316,1744741845720,-2243.67058336,0.00018,2]
[358115317,1744741845833,-1963.575,0.00018,2]
[358115318,1744741845844,-13556.56283461,0.00018,2]
[358115319,1744741845890,-733.39691741,0.00018,2]
[358115351,1744741957629,248.60317997,0.000265,120]
[358115352,1744742032978,1980.35952799,0.000239,30]
[358115353,1744742128359,1000.0,0.000179,30]
[358115354,1744742145811,15040.0,0.00017463,7]
[358115355,1744742177410,250.0,0.00017246,2]
[358115356,1744742382501,200.0,0.00017178,2]
[358115357,1744742439243,250.0,0.00017203,2]
[358115358,1744742508150,449.32,0.00017111,2]
[358115359,1744742568146,616.0,0.00015195,2]
[358115360,1744742568802,616.0,0.00017459,2]
[358115361,1744742704454,736.57,0.00017,2]
[358115362,1744742706116,736.57,0.00017,2]
[358115363,1744742905142,331.48,0.00017165,2]
[358115364,1744742937717,1000.0,0.00017165,2]
[358115373,1744743031694,-166.66,0.0001768,2]
[358115374,1744743031704,-250.0,0.0001774,2]
[358115375,1744743031713,-206.49,0.000178,2]
[358115376,1744743031723,-300.0,0.00017899,2]
[358115377,1744743031732,-175.4531321,0.00017899,2]
[358115378,1744743031742,-300.0,0.00017899,2]
[358115379,1744743031751,-175.45313208,0.00017899,2]
[358115380,1744743031761,-175.45313208,0.000179,2]
[358115381,1744743031770,-649.9370939,0.000179,2]
[358115382,1744743031829,-602.53226605,0.000179,2]
[358115383,1744743031840,-2621.27391909,0.000179,2]
[358115384,1744743031863,-5672.49992096,0.000179,2]
[358115385,1744743031872,-175.45313208,0.000179,2]
[358115386,1744743031881,-226.70183528,0.000179,2]
[358115387,1744743031891,-180.112229,0.000179,2]
[358115388,1744743031902,-270.83,0.000179,2]
[358115534,1744743037747,-365.20133016,0.000179,2]
[358115535,1744743037856,-1699.68264448,0.000179,2]
[358115536,1744743037869,-877.20914148,0.000179,2]
[358115537,1744743037881,-659.31457608,0.000179,2]
[358115538,1744743037908,-364.05892496,0.000179,2]
[358115539,1744743037917,-175.45313208,0.000179,2]
[358115540,1744743037926,-173.88173848,0.000179,2]
[358115541,1744743037936,-386.34201516,0.000179,3]
[358115542,1744743037946,-1430.34089626,0.000179,2]
[358115543,1744743037955,-1908.17435343,0.0001797,2]
[358115544,1744743037964,-838.52381488,0.0001797,2]
[358115545,1744743037973,-1000.0,0.0001797,2]
[358115546,1744743037983,-164.47374508,0.00017973,2]
[358115547,1744743037992,-501.29372215,0.00017973,2]
[358115548,1744743038001,-500.0,0.00017973,2]
[358115549,1744743038011,-1617.679,0.00017973,2]
[358115550,1744743038020,-747.8592943,0.00017986,2]
[358115551,1744743038029,-936.9023604,0.00017986,2]
[358115552,1744743038038,-2850.64578318,0.00017986,2]
[358115553,1744743038049,-5301.35543872,0.00017986,2]
[358115554,1744743038059,-441.2505236,0.00017986,2]
[358115555,1744743038068,-4581.46173863,0.00017988,2]
[358115556,1744743038077,-668.65185757,0.00017989,2]
[358115557,1744743038086,-207.4,0.00017989,2]
[358115558,1744743038095,-160.08390333,0.0001799,2]
[358115559,1744743038104,-160.08390333,0.0001799,2]
[358115560,1744743038114,-160.08390333,0.0001799,2]
[358115561,1744743038123,-908.0,0.00017998,2]
[358115562,1744743038132,-2639.05815695,0.00017998,2]
[358115563,1744743038144,-511.00409252,0.00017998,2]
[358115564,1744743038159,-998.93775053,0.00017998,2]
[358115565,1744743038168,-460.97,0.00017998,2]
[358115566,1744743038177,-267.794,0.00017998,2]
[358115567,1744743038187,-865.0,0.00017998,2]
[358115568,1744743038196,-380.77504156,0.00017998,2]
[358115577,1744743040211,-576.098978,0.00017998,2]
[358115701,1744743046811,466.92440737,0.00017098,2]
[358115702,1744743053091,300.0,0.000172,6]
[358115703,1744743055178,700.0,0.000173,6]
[358115704,1744743057302,1100.0,0.000174,6]
[358115705,1744743059375,1400.0,0.000175,6]
[358115706,1744743061506,1800.0,0.000176,6]
[358115707,1744743063579,300.0,0.000177,6]
[358115708,1744743065748,300.0,0.000178,6]
[358115709,1744743067851,300.0,0.000179,6]
[358115710,1744743093897,151.75157878,0.00018,19]
[358115711,1744743178627,250.0,0.00017,2]
[358115712,1744743186963,200.0,0.00017178,7]
[358115713,1744743194161,150.0,0.00017165,2]
[358115714,1744743220011,250.0,0.00017,2]
[358115715,1744743264021,298.79,0.00017145,2]
[358115716,1744743297131,198.78,0.0001712,2]
[358115717,1744743297666,198.78,0.0002568,120]
[358115718,1744743337798,289.74,0.0001697,2]
[358115719,1744743476256,250.0,0.00017165,2]
[358115720,1744743506128,556.34,0.0001691,2]
[358115721,1744743861052,596.41,0.00015038,2]
[358115722,1744743861507,596.41,0.00017302,2]
[358115723,1744743867332,215.24684026,0.00017215,20]
[358115724,1744743876463,166.18,0.00016911,2]
[358115725,1744744069440,1000.0,0.00016852,2]
[358115726,1744744071155,1623.12513524,0.00017999,5]
[358115727,1744744078343,165.74,0.00016852,2]
[358115728,1744744209052,-1137.07518153,0.00017542,2]
[358115729,1744744209084,-250.0,0.0001759,2]
[358115730,1744744209114,-1127.91513944,0.00017638,2]
[358115731,1744744209149,-300.0,0.00017639,2]
[358115732,1744744209186,-300.0,0.00017639,2]
[358115733,1744744209217,-451.72535949,0.0001764,2]
[358115742,1744744231924,-580.6978953,0.0001764,2]
[358115743,1744744231934,-1120.7979149,0.0001764,2]
[358115744,1744744231942,-1079.50366757,0.0001764,2]
[358115745,1744744231950,-167.655637,0.0001764,2]
[358115746,1744744231957,-1146.46026443,0.00017699,2]
[358115747,1744744231967,-184.12973557,0.00017699,2]
[358115748,1744744231974,-3182.47081588,0.000177,2]
[358115749,1744744232025,-2908.21526417,0.000177,2]
[358115750,1744744232080,-450.82714874,0.000177,2]
[358115751,1744744232134,-928.30623777,0.000177,2]
[358115752,1744744232189,-513.48053344,0.000177,2]
[358115753,1744744232201,-300.99946656,0.0001773,2]
[358115778,1744744237932,-206.25154344,0.0001773,2]
[358115779,1744744237943,-76.30845647,0.00017736,2]
[358115780,1744744237955,-93.24019615,0.00017736,2]
[358115781,1744744237965,-650.8428161,0.00017785,2]
[358115782,1744744238192,-2057.792129,0.00017785,2]
[358115783,1744744238204,-507.25101,0.00017787,2]
[358115784,1744744238214,-530.406856,0.00017798,2]
[358115785,1744744238226,-483.48,0.00017798,2]
[358115786,1744744238238,-587.4075,0.00017798,2]
[358115787,1744744238309,-1107.34058905,0.00017798,2]
[358115788,1744744238318,-2500.0,0.00017798,2]
[358115789,1744744238328,-500.0,0.00017808,2]
[358115790,1744744238337,-2708.63494505,0.00017811,2]
[358115791,1744744238347,-4801.7621523,0.0001782,2]
[358115792,1744744238356,-2708.63494505,0.00017823,2]
[358115793,1744744238365,-550.0,0.00017825,2]
[358115794,1744744238374,-500.0,0.00017826,2]
[358115795,1744744238383,-500.0,0.00017826,2]
[358115796,1744744238393,-500.0,0.00017826,2]
[358115797,1744744238402,-500.0,0.00017826,2]
[358115798,1744744238412,-500.0,0.00017826,2]
[358115799,1744744238423,-500.0,0.00017826,2]
[358115800,1744744238433,-500.0,0.00017826,2]
[358115801,1744744238442,-500.0,0.00017826,2]
[358115802,1744744238452,-500.0,0.00017826,2]
[358115803,1744744238461,-500.0,0.00017826,2]
[358115804,1744744238470,-500.0,0.00017826,2]
[358115806,1744744238479,-500.0,0.00017826,2]
[358115808,1744744238489,-500.0,0.00017826,2]
[358115810,1744744238498,-500.0,0.00017826,2]
[358115812,1744744238507,-500.0,0.00017826,2]
[358115814,1744744238517,-500.0,0.00017826,2]
[358115816,1744744238527,-500.0,0.00017826,2]
[358115818,1744744238537,-500.0,0.00017826,2]
[358115820,1744744238546,-500.0,0.00017826,2]
[358115822,1744744238555,-500.0,0.00017826,2]
[358115824,1744744238564,-500.0,0.00017826,2]
[358115826,1744744238574,-500.0,0.00017826,2]
[358115828,1744744238583,-500.0,0.00017826,2]